[Event "*** Titled Tuesday Blitz"]
[Site "Chess.com"]
[Date "2019.03.05"]
[Round "7"]
[White "UCantHandleDenker"]
[Black "Barcelona_Guy"]
[Result "1/2-1/2"]
[WhiteElo "2544"]
[BlackElo "2728"]
[TimeControl "180+2"]
[EndTime "14:40:20 PST"]
[Termination "Game drawn by stalemate"]

1. Nf3 {[%clk 0:03:01.9]} 1... Nf6 {[%clk 0:02:56.7]} 2. g3 {[%clk 0:03:03.8]}
2... d5 {[%clk 0:02:55.5]} 3. Bg2 {[%clk 0:03:04]} 3... e6 {[%clk 0:02:52.7]} 4.
O-O {[%clk 0:03:04.2]} 4... Be7 {[%clk 0:02:54.3]} 5. d3 {[%clk 0:03:04.7]} 5...
O-O {[%clk 0:02:55.9]} 6. Nbd2 {[%clk 0:03:06.2]} 6... a5 {[%clk 0:02:57.3]} 7.
e4 {[%clk 0:03:06.3]} 7... a4 {[%clk 0:02:58.7]} 8. a3 {[%clk 0:03:06.8]} 8...
Nc6 {[%clk 0:03:00]} 9. e5 {[%clk 0:03:04.7]} 9... Nd7 {[%clk 0:03:00.8]} 10.
Re1 {[%clk 0:03:04.8]} 10... f6 {[%clk 0:02:47.5]} 11. exf6 {[%clk 0:03:05]}
11... Nxf6 {[%clk 0:02:48.6]} 12. c4 {[%clk 0:02:33.7]} 12... Bd7 {[%clk
0:02:43.1]} 13. Qe2 {[%clk 0:02:27.4]} 13... Re8 {[%clk 0:02:36.1]} 14. h4
{[%clk 0:01:58.7]} 14... Bc5 {[%clk 0:02:36.9]} 15. Nf1 {[%clk 0:01:53.5]} 15...
Ng4 {[%clk 0:02:21.7]} 16. d4 {[%clk 0:01:46.1]} 16... Bf8 {[%clk 0:02:17.3]}
17. Ne3 {[%clk 0:01:37.2]} 17... Nxe3 {[%clk 0:02:16.5]} 18. Bxe3 {[%clk
0:01:39.1]} 18... h6 {[%clk 0:02:06.6]} 19. Qd3 {[%clk 0:01:36.8]} 19... Qf6
{[%clk 0:02:04.9]} 20. cxd5 {[%clk 0:01:26.2]} 20... exd5 {[%clk 0:02:06.8]} 21.
Ne5 {[%clk 0:01:27.3]} 21... Nxe5 {[%clk 0:01:59.5]} 22. dxe5 {[%clk 0:01:27.8]}
22... Rxe5 {[%clk 0:02:01]} 23. Bxd5+ {[%clk 0:01:24.7]} 23... Be6 {[%clk
0:02:02.4]} 24. Bxb7 {[%clk 0:01:04.2]} 24... Rd8 {[%clk 0:02:02.9]} 25. Qc3
{[%clk 0:01:05]} 25... Bd6 {[%clk 0:01:45.8]} 26. Bg2 {[%clk 0:01:02.2]} 26...
c5 {[%clk 0:01:34.6]} 27. Bf4 {[%clk 0:00:55.3]} 27... Rxe1+ {[%clk 0:01:34.9]}
28. Rxe1 {[%clk 0:00:57.1]} 28... Qxc3 {[%clk 0:01:35.2]} 29. bxc3 {[%clk
0:00:59]} 29... Bxf4 {[%clk 0:01:36.5]} 30. Rxe6 {[%clk 0:00:55.7]} 30... Bd2
{[%clk 0:01:35.7]} 31. Ra6 {[%clk 0:00:53.7]} 31... Bxc3 {[%clk 0:01:33.8]} 32.
Rxa4 {[%clk 0:00:53.8]} 32... Rd1+ {[%clk 0:01:34.7]} 33. Kh2 {[%clk 0:00:54.5]}
33... Rd2 {[%clk 0:01:36.2]} 34. f3 {[%clk 0:00:48.9]} 34... Bd4 {[%clk
0:01:31.5]} 35. Rc4 {[%clk 0:00:47.6]} 35... Kf7 {[%clk 0:01:30.2]} 36. Kh3
{[%clk 0:00:48.1]} 36... Ke6 {[%clk 0:01:31]} 37. f4 {[%clk 0:00:40.5]} 37...
Rd3 {[%clk 0:01:32.2]} 38. Bf1 {[%clk 0:00:29.6]} 38... Rxa3 {[%clk 0:01:31.6]}
39. Rc2 {[%clk 0:00:23.3]} 39... Rc3 {[%clk 0:01:13.1]} 40. Rxc3 {[%clk
0:00:14.5]} 40... Bxc3 {[%clk 0:01:15]} 41. Kg4 {[%clk 0:00:14.1]} 41... Kd5
{[%clk 0:01:15.3]} 42. Kf5 {[%clk 0:00:14.7]} 42... c4 {[%clk 0:01:14.8]} 43. h5
{[%clk 0:00:15.8]} 43... Ba1 {[%clk 0:01:04.1]} 44. g4 {[%clk 0:00:15]} 44...
Kd4 {[%clk 0:01:05.5]} 45. Bxc4 {[%clk 0:00:14.7]} 45... Kxc4 {[%clk 0:01:06.3]}
46. g5 {[%clk 0:00:16.3]} 46... Kd5 {[%clk 0:00:33.3]} 47. gxh6 {[%clk
0:00:16.1]} 47... gxh6 {[%clk 0:00:35.2]} 48. Kg6 {[%clk 0:00:16.9]} 48... Ke6
{[%clk 0:00:37.1]} 49. Kxh6 {[%clk 0:00:16.5]} 49... Kf6 {[%clk 0:00:38.3]} 50.
Kh7 {[%clk 0:00:15.9]} 50... Kf7 {[%clk 0:00:37.9]} 51. Kh6 {[%clk 0:00:13.5]}
51... Bf6 {[%clk 0:00:39.8]} 52. Kh7 {[%clk 0:00:14.1]} 52... Bg7 {[%clk
0:00:41]} 53. f5 {[%clk 0:00:14.4]} 53... Be5 {[%clk 0:00:42]} 54. h6 {[%clk
0:00:15.5]} 54... Bf6 {[%clk 0:00:43.5]} 1/2-1/2

[Event "*** Titled Tuesday Blitz"]
[Site "Chess.com"]
[Date "2019.03.05"]
[Round "7"]
[White "GameOverBro"]
[Black "toog"]
[Result "1-0"]
[WhiteElo "2383"]
[BlackElo "2230"]
[TimeControl "180+2"]
[EndTime "14:40:24 PST"]
[Termination "GameOverBro won by resignation"]

1. a3 {[%clk 0:03:01.9]} 1... Nf6 {[%clk 0:02:58.1]} 2. b3 {[%clk 0:03:03.8]}
2... d5 {[%clk 0:02:58.1]} 3. c3 {[%clk 0:03:05.7]} 3... c5 {[%clk 0:02:57.4]}
4. d3 {[%clk 0:03:07.6]} 4... Nc6 {[%clk 0:02:58.5]} 5. e3 {[%clk 0:03:09.2]}
5... e5 {[%clk 0:02:59.7]} 6. f3 {[%clk 0:03:10.6]} 6... h5 {[%clk 0:03:00]} 7.
Ra2 {[%clk 0:03:12.1]} 7... h4 {[%clk 0:03:00.2]} 8. Nh3 {[%clk 0:03:10.6]} 8...
Bd6 {[%clk 0:02:59.9]} 9. g4 {[%clk 0:03:07.3]} 9... hxg3 {[%clk 0:02:59.7]} 10.
hxg3 {[%clk 0:03:08.6]} 10... e4 {[%clk 0:03:01]} 11. f4 {[%clk 0:03:01]} 11...
Bg4 {[%clk 0:03:00.9]} 12. Qd2 {[%clk 0:02:58.2]} 12... Bf3 {[%clk 0:03:01.7]}
13. Rg1 {[%clk 0:02:53]} 13... Ng4 {[%clk 0:03:02.6]} 14. dxe4 {[%clk
0:02:32.8]} 14... Bxe4 {[%clk 0:02:56.4]} 15. Rb2 {[%clk 0:02:27]} 15... Qf6
{[%clk 0:02:50.7]} 16. Qe2 {[%clk 0:02:25.8]} 16... Qg6 {[%clk 0:02:23.8]} 17.
Nf2 {[%clk 0:02:23.7]} 17... Nxf2 {[%clk 0:02:21.8]} 18. Qxf2 {[%clk 0:02:24.5]}
18... Bxb1 {[%clk 0:02:22.7]} 19. g4 {[%clk 0:02:21.1]} 19... Be4 {[%clk
0:02:20.6]} 20. c4 {[%clk 0:02:16.6]} 20... O-O-O {[%clk 0:02:19.2]} 21. cxd5
{[%clk 0:02:15.6]} 21... Bxd5 {[%clk 0:02:19.7]} 22. Rd2 {[%clk 0:02:13]} 22...
Qb1 {[%clk 0:02:17.4]} 23. Rc2 {[%clk 0:02:08.1]} 23... Bxb3 {[%clk 0:02:13.9]}
24. Rc3 {[%clk 0:02:09.3]} 24... c4 {[%clk 0:02:10]} 25. Bxc4 {[%clk 0:02:07.4]}
25... Bxa3 {[%clk 0:02:03.2]} 26. Bxb3 {[%clk 0:02:02]} 26... Bxc1 {[%clk
0:01:58.2]} 27. Bc2 {[%clk 0:01:56.9]} 27... Bd2+ {[%clk 0:01:58.5]} 28. Ke2
{[%clk 0:01:56.7]} 28... Qb5+ {[%clk 0:01:55.9]} 29. Bd3 {[%clk 0:01:57.6]}
29... Bxe3 {[%clk 0:01:07.3]} 30. Qxe3 {[%clk 0:01:50.7]} 30... Qd5 {[%clk
0:01:06.1]} 31. Be4 {[%clk 0:01:15.2]} 31... Qb5+ {[%clk 0:01:03.7]} 32. Kf2
{[%clk 0:01:12.8]} 32... Rhe8 {[%clk 0:01:00]} 33. Rgc1 {[%clk 0:01:11.8]} 33...
Qb4 {[%clk 0:00:48.2]} 34. Rc4 {[%clk 0:01:00.8]} 34... Qb6 {[%clk 0:00:45.2]}
35. Qxb6 {[%clk 0:00:57.2]} 35... axb6 {[%clk 0:00:47.1]} 36. Bxc6 {[%clk
0:00:58.4]} 36... bxc6 {[%clk 0:00:48.9]} 37. Rxc6+ {[%clk 0:01:00.1]} 37... Kb7
{[%clk 0:00:50.4]} 38. Rc7+ {[%clk 0:01:01.5]} 38... Ka6 {[%clk 0:00:51.9]} 39.
Rxf7 {[%clk 0:00:58.4]} 39... Rd2+ {[%clk 0:00:52.7]} 40. Kg3 {[%clk 0:00:56.2]}
40... g5 {[%clk 0:00:35.1]} 41. Ra1+ {[%clk 0:00:53.1]} 41... Kb5 {[%clk
0:00:35.5]} 42. Rf5+ {[%clk 0:00:54.3]} 42... Kc4 {[%clk 0:00:36.1]} 43. fxg5
{[%clk 0:00:44.5]} 43... Rd3+ {[%clk 0:00:32.5]} 44. Kf4 {[%clk 0:00:40.1]}
44... b5 {[%clk 0:00:26.8]} 45. Rc1+ {[%clk 0:00:37.6]} 45... Kd4 {[%clk
0:00:26.5]} 46. g6 {[%clk 0:00:36.8]} 46... Rg8 {[%clk 0:00:24.6]} 47. Kg5
{[%clk 0:00:36.5]} 47... Ke4 {[%clk 0:00:24.2]} 48. Rxb5 {[%clk 0:00:35.9]}
48... Rd6 {[%clk 0:00:24.4]} 49. Re1+ {[%clk 0:00:31.6]} 49... Kf3 {[%clk
0:00:24.5]} 50. Rf5+ {[%clk 0:00:32.3]} 50... Kg3 {[%clk 0:00:23.2]} 51. Rf6
{[%clk 0:00:27.3]} 51... Rd5+ {[%clk 0:00:23.1]} 52. Kh6 {[%clk 0:00:25.9]}
52... Kxg4 {[%clk 0:00:24]} 53. Rg1+ {[%clk 0:00:21.5]} 53... Kh4 {[%clk
0:00:24.8]} 54. Kh7 {[%clk 0:00:20.7]} 54... Rdd8 {[%clk 0:00:22.7]} 55. g7
{[%clk 0:00:21.4]} 1-0

[Event "*** Titled Tuesday Blitz"]
[Site "Chess.com"]
[Date "2019.03.05"]
[Round "7"]
[White "ASVZ"]
[Black "LLRChess"]
[Result "0-1"]
[WhiteElo "2402"]
[BlackElo "2351"]
[TimeControl "180+2"]
[EndTime "14:40:25 PST"]
[Termination "LLRChess won on time"]

1. e4 {[%clk 0:03:01.9]} 1... d5 {[%clk 0:03:00]} 2. exd5 {[%clk 0:03:02.6]}
2... Qxd5 {[%clk 0:03:01.9]} 3. Nf3 {[%clk 0:03:03.7]} 3... Nf6 {[%clk
0:03:01.2]} 4. d4 {[%clk 0:03:05]} 4... Bg4 {[%clk 0:02:59]} 5. Be2 {[%clk
0:03:05.8]} 5... c6 {[%clk 0:02:57.6]} 6. h3 {[%clk 0:03:06.8]} 6... Bh5 {[%clk
0:02:56.6]} 7. c4 {[%clk 0:03:07.6]} 7... Qa5+ {[%clk 0:02:53.6]} 8. Nc3 {[%clk
0:03:07.5]} 8... Nbd7 {[%clk 0:02:54.2]} 9. Bd2 {[%clk 0:03:03.6]} 9... Qc7
{[%clk 0:02:54]} 10. c5 {[%clk 0:02:59.7]} 10... e6 {[%clk 0:02:32.7]} 11. O-O
{[%clk 0:02:59.6]} 11... Be7 {[%clk 0:02:32.6]} 12. b4 {[%clk 0:03:00.2]} 12...
Nd5 {[%clk 0:02:30.5]} 13. Nxd5 {[%clk 0:03:00.3]} 13... exd5 {[%clk 0:02:21.8]}
14. Re1 {[%clk 0:02:59.5]} 14... O-O {[%clk 0:02:21.9]} 15. b5 {[%clk
0:02:58.4]} 15... Bf6 {[%clk 0:02:22.1]} 16. bxc6 {[%clk 0:02:55.4]} 16... Qxc6
{[%clk 0:02:08.4]} 17. Be3 {[%clk 0:02:46.2]} 17... b6 {[%clk 0:02:08.8]} 18.
Rc1 {[%clk 0:02:43.6]} 18... bxc5 {[%clk 0:02:08.8]} 19. dxc5 {[%clk 0:02:44.3]}
19... Rfe8 {[%clk 0:01:50.8]} 20. Nd4 {[%clk 0:02:35.7]} 20... Bxe2 {[%clk
0:01:50.7]} 21. Nxc6 {[%clk 0:02:33.1]} 21... Bxd1 {[%clk 0:01:50.8]} 22. Rexd1
{[%clk 0:02:35]} 22... Ne5 {[%clk 0:01:30.7]} 23. Nxe5 {[%clk 0:02:28.4]} 23...
Rxe5 {[%clk 0:01:32.6]} 24. Bd4 {[%clk 0:02:22]} 24... Rf5 {[%clk 0:01:23.8]}
25. Bxf6 {[%clk 0:02:21.4]} 25... gxf6 {[%clk 0:01:23.7]} 26. c6 {[%clk
0:02:17.7]} 26... Rc8 {[%clk 0:01:23.9]} 27. c7 {[%clk 0:02:17.1]} 27... Kf8
{[%clk 0:01:22.6]} 28. Rd4 {[%clk 0:01:52.8]} 28... Ke7 {[%clk 0:01:17.8]} 29.
f4 {[%clk 0:01:51.5]} 29... Rh5 {[%clk 0:01:14.3]} 30. Kh2 {[%clk 0:01:48]}
30... Kd6 {[%clk 0:01:11.7]} 31. g4 {[%clk 0:01:45.9]} 31... Rh6 {[%clk
0:01:11.3]} 32. f5 {[%clk 0:01:44.9]} 32... Ke5 {[%clk 0:00:55.3]} 33. Ra4
{[%clk 0:01:45.3]} 33... d4 {[%clk 0:00:52.5]} 34. Kg3 {[%clk 0:01:24.5]} 34...
d3 {[%clk 0:00:48.4]} 35. Rxa7 {[%clk 0:01:25]} 35... Ke4 {[%clk 0:00:42.2]} 36.
Ra4+ {[%clk 0:01:19.2]} 36... Ke3 {[%clk 0:00:42.9]} 37. Ra3 {[%clk 0:01:17.6]}
37... Ke2 {[%clk 0:00:41.3]} 38. Rb3 {[%clk 0:00:40.4]} 38... d2 {[%clk
0:00:32.6]} 39. Rb2 {[%clk 0:00:41.2]} 39... Ke3 {[%clk 0:00:12.1]} 40. Rb3+
{[%clk 0:00:23.6]} 40... Ke2 {[%clk 0:00:11.6]} 41. Rc2 {[%clk 0:00:15.5]} 41...
Rxc7 {[%clk 0:00:10.5]} 42. Rxc7 {[%clk 0:00:11.3]} 42... d1=Q {[%clk
0:00:10.9]} 43. Re7+ {[%clk 0:00:06.7]} 43... Kf1 {[%clk 0:00:12]} 44. Rf3+
{[%clk 0:00:05.2]} 44... Kg1 {[%clk 0:00:12.7]} 45. Rfe3 {[%clk 0:00:04.3]}
45... Qd6+ {[%clk 0:00:12.4]} 0-1

[Event "*** Titled Tuesday Blitz"]
[Site "Chess.com"]
[Date "2019.03.05"]
[Round "7"]
[White "Off-War"]
[Black "GMKrikor"]
[Result "1-0"]
[WhiteElo "2550"]
[BlackElo "2713"]
[TimeControl "180+2"]
[EndTime "14:40:30 PST"]
[Termination "Off-War won by resignation"]

1. d4 {[%clk 0:03:01.9]} 1... Nf6 {[%clk 0:03:01.4]} 2. Bg5 {[%clk 0:03:01.9]}
2... d5 {[%clk 0:03:02.3]} 3. Bxf6 {[%clk 0:03:02.8]} 3... gxf6 {[%clk
0:03:03.2]} 4. e3 {[%clk 0:03:04.7]} 4... c5 {[%clk 0:03:03.8]} 5. dxc5 {[%clk
0:03:04.2]} 5... e6 {[%clk 0:03:02.2]} 6. c4 {[%clk 0:03:04.6]} 6... dxc4 {[%clk
0:02:59.3]} 7. Qxd8+ {[%clk 0:03:06.5]} 7... Kxd8 {[%clk 0:03:01.2]} 8. Bxc4
{[%clk 0:03:07.8]} 8... Bxc5 {[%clk 0:03:02.5]} 9. Nc3 {[%clk 0:03:06.8]} 9...
a6 {[%clk 0:02:51.2]} 10. Nf3 {[%clk 0:03:02.7]} 10... Ke7 {[%clk 0:02:51]} 11.
Ke2 {[%clk 0:03:02.9]} 11... b5 {[%clk 0:02:31.5]} 12. Bd3 {[%clk 0:03:03.6]}
12... Nd7 {[%clk 0:02:28.5]} 13. Rhd1 {[%clk 0:03:00.2]} 13... Rb8 {[%clk
0:02:26.4]} 14. Rac1 {[%clk 0:02:59.8]} 14... f5 {[%clk 0:02:07.2]} 15. e4
{[%clk 0:03:00.9]} 15... fxe4 {[%clk 0:02:03.6]} 16. Nxe4 {[%clk 0:03:02.8]}
16... Bb6 {[%clk 0:02:04.9]} 17. b4 {[%clk 0:02:50.7]} 17... Bb7 {[%clk
0:02:00.9]} 18. g4 {[%clk 0:02:48.5]} 18... h6 {[%clk 0:02:00.6]} 19. h3 {[%clk
0:02:48.6]} 19... Rbc8 {[%clk 0:01:47.9]} 20. a3 {[%clk 0:02:44.6]} 20... Bd5
{[%clk 0:01:42.2]} 21. h4 {[%clk 0:02:36.8]} 21... Rhg8 {[%clk 0:01:29.3]} 22.
g5 {[%clk 0:02:37.7]} 22... hxg5 {[%clk 0:01:31.2]} 23. hxg5 {[%clk 0:02:39.6]}
23... Rc6 {[%clk 0:00:58.5]} 24. Rxc6 {[%clk 0:02:26.9]} 24... Bxc6 {[%clk
0:00:59.4]} 25. Rh1 {[%clk 0:02:24.6]} 25... Bd5 {[%clk 0:00:46.4]} 26. Rh7
{[%clk 0:02:22.2]} 26... Nf8 {[%clk 0:00:43.6]} 27. Rh6 {[%clk 0:02:20.1]} 27...
Ng6 {[%clk 0:00:40.8]} 28. Nf6 {[%clk 0:01:52.3]} 28... Nf4+ {[%clk 0:00:39.4]}
29. Kd2 {[%clk 0:01:51.9]} 29... Rd8 {[%clk 0:00:37.3]} 30. Ne5 {[%clk
0:01:44.1]} 30... Bd4 {[%clk 0:00:13]} 31. Nxd5+ {[%clk 0:01:36.7]} 31... Rxd5
{[%clk 0:00:11.3]} 32. Nc6+ {[%clk 0:01:38.6]} 32... Kd6 {[%clk 0:00:12.9]} 33.
Nxd4 {[%clk 0:01:29.1]} 33... Rxd4 {[%clk 0:00:13.5]} 34. Ke3 {[%clk 0:01:31]}
34... Rxd3+ {[%clk 0:00:07.4]} 35. Kxf4 {[%clk 0:01:31.7]} 35... Rxa3 {[%clk
0:00:08.4]} 36. Rh7 {[%clk 0:01:31.8]} 36... Rb3 {[%clk 0:00:09.4]} 37. Rxf7
{[%clk 0:01:31.3]} 37... Rxb4+ {[%clk 0:00:11.3]} 38. Kg3 {[%clk 0:01:30.8]}
38... Rb1 {[%clk 0:00:11.7]} 39. Kg2 {[%clk 0:01:31.2]} 39... Rc1 {[%clk
0:00:09.3]} 40. Ra7 {[%clk 0:01:29]} 40... Ke5 {[%clk 0:00:06]} 41. Kf3 {[%clk
0:01:19.9]} 41... Rc8 {[%clk 0:00:04.6]} 42. Kg4 {[%clk 0:01:14.4]} 42... Rb8
{[%clk 0:00:06]} 43. f4+ {[%clk 0:01:11.8]} 43... Kd5 {[%clk 0:00:05.3]} 44. g6
{[%clk 0:01:01.6]} 44... b4 {[%clk 0:00:06.4]} 45. Rxa6 {[%clk 0:01:03.2]} 45...
b3 {[%clk 0:00:07.6]} 46. Ra1 {[%clk 0:01:04.8]} 46... b2 {[%clk 0:00:07.2]} 47.
Rb1 {[%clk 0:01:06.4]} 47... Ke4 {[%clk 0:00:05.6]} 48. Kg5 {[%clk 0:01:05.9]}
48... Kd5 {[%clk 0:00:03]} 49. g7 {[%clk 0:01:05.2]} 49... Ke4 {[%clk
0:00:03.2]} 50. Kf6 {[%clk 0:01:04.3]} 50... Kxf4 {[%clk 0:00:03.6]} 51. Rxb2
{[%clk 0:00:57.2]} 51... Ra8 {[%clk 0:00:05]} 52. Rb4+ {[%clk 0:00:39.6]} 52...
Kf3 {[%clk 0:00:03.8]} 53. Kxe6 {[%clk 0:00:38.8]} 53... Ra6+ {[%clk 0:00:05]}
54. Kf7 {[%clk 0:00:39.7]} 54... Ra7+ {[%clk 0:00:06.5]} 55. Kg6 {[%clk
0:00:41]} 1-0

[Event "*** Titled Tuesday Blitz"]
[Site "Chess.com"]
[Date "2019.03.05"]
[Round "7"]
[White "vinniethepooh"]
[Black "Arystanner"]
[Result "0-1"]
[WhiteElo "2477"]
[BlackElo "2650"]
[TimeControl "180+2"]
[EndTime "14:40:41 PST"]
[Termination "Arystanner won on time"]

1. d4 {[%clk 0:03:01.9]} 1... e6 {[%clk 0:02:57.2]} 2. c4 {[%clk 0:03:02.8]}
2... Nf6 {[%clk 0:02:58.4]} 3. Nc3 {[%clk 0:03:03.4]} 3... Bb4 {[%clk
0:02:59.6]} 4. e3 {[%clk 0:03:04.9]} 4... b6 {[%clk 0:03:00.6]} 5. Bd3 {[%clk
0:03:05.6]} 5... Bb7 {[%clk 0:03:01.5]} 6. Nf3 {[%clk 0:03:06.9]} 6... Ne4
{[%clk 0:03:02.6]} 7. O-O {[%clk 0:03:04.6]} 7... Bxc3 {[%clk 0:02:50.3]} 8.
bxc3 {[%clk 0:03:06.4]} 8... f5 {[%clk 0:02:51.9]} 9. Ne1 {[%clk 0:02:17.2]}
9... O-O {[%clk 0:02:41.8]} 10. f3 {[%clk 0:02:16.8]} 10... Nf6 {[%clk
0:02:39.2]} 11. a4 {[%clk 0:02:12]} 11... Nc6 {[%clk 0:02:38.5]} 12. e4 {[%clk
0:02:07.7]} 12... fxe4 {[%clk 0:02:36.4]} 13. fxe4 {[%clk 0:02:09.2]} 13... e5
{[%clk 0:02:37.5]} 14. Nc2 {[%clk 0:01:59.8]} 14... d6 {[%clk 0:02:35.8]} 15.
Bg5 {[%clk 0:01:55.3]} 15... Qe8 {[%clk 0:02:31.3]} 16. Bxf6 {[%clk 0:01:42.4]}
16... Rxf6 {[%clk 0:02:33.2]} 17. Rxf6 {[%clk 0:01:42.3]} 17... gxf6 {[%clk
0:02:34.4]} 18. Ne3 {[%clk 0:01:39.7]} 18... Ne7 {[%clk 0:02:26.3]} 19. a5
{[%clk 0:01:30.3]} 19... Qg6 {[%clk 0:02:25.7]} 20. d5 {[%clk 0:01:29.7]} 20...
Rf8 {[%clk 0:02:22.5]} 21. axb6 {[%clk 0:01:24.6]} 21... axb6 {[%clk 0:02:24.4]}
22. Ra7 {[%clk 0:01:24.8]} 22... Rb8 {[%clk 0:02:25.1]} 23. Qf3 {[%clk
0:01:21.9]} 23... Kh8 {[%clk 0:02:18.8]} 24. h4 {[%clk 0:01:06.9]} 24... Nc8
{[%clk 0:02:15.8]} 25. Ra1 {[%clk 0:01:03.6]} 25... Ne7 {[%clk 0:02:17.3]} 26.
h5 {[%clk 0:01:01.2]} 26... Qg5 {[%clk 0:02:17.2]} 27. Ng4 {[%clk 0:00:53.7]}
27... Ng8 {[%clk 0:02:11.5]} 28. Ra7 {[%clk 0:00:51.9]} 28... Qxh5 {[%clk
0:02:05.5]} 29. Qg3 {[%clk 0:00:25.4]} 29... Qg5 {[%clk 0:02:04.5]} 30. Qf3
{[%clk 0:00:24.4]} 30... Kg7 {[%clk 0:01:59]} 31. Ne3 {[%clk 0:00:21.7]} 31...
Ne7 {[%clk 0:02:00]} 32. Kf2 {[%clk 0:00:20.1]} 32... h5 {[%clk 0:01:56]} 33.
Ke2 {[%clk 0:00:21]} 33... h4 {[%clk 0:01:50.2]} 34. Ng4 {[%clk 0:00:17.3]}
34... Bc8 {[%clk 0:01:39.6]} 35. Ne3 {[%clk 0:00:18.1]} 35... Rb7 {[%clk
0:01:40.6]} 36. Ra1 {[%clk 0:00:16.2]} 36... Bd7 {[%clk 0:01:37.5]} 37. Kf2
{[%clk 0:00:13.1]} 37... Rb8 {[%clk 0:01:37.1]} 38. Ra7 {[%clk 0:00:12.7]} 38...
Rc8 {[%clk 0:01:38.7]} 39. Be2 {[%clk 0:00:09.3]} 39... Ng6 {[%clk 0:01:36.7]}
40. Nf5+ {[%clk 0:00:05]} 40... Bxf5 {[%clk 0:01:36.7]} 41. Qxf5 {[%clk
0:00:05.7]} 41... Qxf5+ {[%clk 0:01:35.7]} 42. exf5 {[%clk 0:00:06.3]} 42... Nf4
{[%clk 0:01:27.7]} 43. Bd1 {[%clk 0:00:06.1]} 43... Kf7 {[%clk 0:01:26.2]} 44.
Kf3 {[%clk 0:00:04]} 44... Ke7 {[%clk 0:01:26.5]} 45. Ba4 {[%clk 0:00:03.2]}
45... Nd3 {[%clk 0:01:00.5]} 46. Bc6 {[%clk 0:00:03.8]} 46... Nf4 {[%clk
0:00:54.4]} 47. Ba4 {[%clk 0:00:03.1]} 47... Nd3 {[%clk 0:00:52.3]} 48. Bc6
{[%clk 0:00:04.1]} 48... Nc5 {[%clk 0:00:53.7]} 49. Kg4 {[%clk 0:00:01.3]} 49...
e4 {[%clk 0:00:52.6]} 50. Kxh4 {[%clk 0:00:02.1]} 50... Rg8 {[%clk 0:00:44.1]}
0-1

[Event "*** Titled Tuesday Blitz"]
[Site "Chess.com"]
[Date "2019.03.05"]
[Round "7"]
[White "Swarnapuri"]
[Black "gmcorrales"]
[Result "1-0"]
[WhiteElo "2730"]
[BlackElo "2694"]
[TimeControl "180+2"]
[EndTime "14:40:43 PST"]
[Termination "Swarnapuri won on time"]

1. d4 {[%clk 0:03:01.9]} 1... Nf6 {[%clk 0:03:00.7]} 2. Bf4 {[%clk 0:03:02.4]}
2... g6 {[%clk 0:02:59.6]} 3. e3 {[%clk 0:03:03.7]} 3... Bg7 {[%clk 0:03:00.8]}
4. Nf3 {[%clk 0:03:05.6]} 4... O-O {[%clk 0:03:01.5]} 5. Be2 {[%clk 0:03:07.2]}
5... d5 {[%clk 0:03:02.6]} 6. O-O {[%clk 0:03:08.8]} 6... b6 {[%clk 0:03:04.2]}
7. a4 {[%clk 0:03:09.3]} 7... Bb7 {[%clk 0:03:04.9]} 8. a5 {[%clk 0:03:10.1]}
8... Nc6 {[%clk 0:03:03.8]} 9. axb6 {[%clk 0:03:00.7]} 9... axb6 {[%clk
0:03:04.8]} 10. Rxa8 {[%clk 0:03:02.6]} 10... Bxa8 {[%clk 0:03:06.1]} 11. Na3
{[%clk 0:03:03.4]} 11... Nh5 {[%clk 0:03:04.9]} 12. Bg5 {[%clk 0:03:04.4]} 12...
h6 {[%clk 0:03:05.1]} 13. Bh4 {[%clk 0:03:05.3]} 13... g5 {[%clk 0:03:03.8]} 14.
Nd2 {[%clk 0:03:05.3]} 14... gxh4 {[%clk 0:02:58.9]} 15. Bxh5 {[%clk 0:03:05.6]}
15... e5 {[%clk 0:03:00.2]} 16. c3 {[%clk 0:03:04]} 16... Qg5 {[%clk 0:02:47.7]}
17. f4 {[%clk 0:02:55.5]} 17... exf4 {[%clk 0:02:43.8]} 18. exf4 {[%clk
0:02:57.4]} 18... Qf6 {[%clk 0:02:40.7]} 19. Qg4 {[%clk 0:02:47.1]} 19... Ne7
{[%clk 0:02:40.8]} 20. Nf3 {[%clk 0:02:44.4]} 20... Nf5 {[%clk 0:02:40.1]} 21.
Re1 {[%clk 0:02:45.7]} 21... Bb7 {[%clk 0:02:40]} 22. Qh3 {[%clk 0:02:36.1]}
22... Nd6 {[%clk 0:02:38.8]} 23. Qxh4 {[%clk 0:02:36.1]} 23... Qf5 {[%clk
0:02:35.6]} 24. Qg4 {[%clk 0:02:20.9]} 24... Qd3 {[%clk 0:02:30.4]} 25. Ne5
{[%clk 0:02:22.2]} 25... Qd2 {[%clk 0:02:28.2]} 26. Qe2 {[%clk 0:01:23.1]} 26...
Qxf4 {[%clk 0:02:28.4]} 27. Rf1 {[%clk 0:01:21.8]} 27... Qe4 {[%clk 0:02:02.4]}
28. Qf2 {[%clk 0:00:41.5]} 28... Bxe5 {[%clk 0:01:56.4]} 29. dxe5 {[%clk
0:00:43.4]} 29... Qxe5 {[%clk 0:01:57.4]} 30. Bf3 {[%clk 0:00:43.7]} 30... c6
{[%clk 0:01:50.8]} 31. Qxb6 {[%clk 0:00:43.7]} 31... Re8 {[%clk 0:01:46.9]} 32.
Nc2 {[%clk 0:00:42]} 32... Kg7 {[%clk 0:01:36]} 33. Kh1 {[%clk 0:00:42.6]} 33...
Re7 {[%clk 0:01:21.2]} 34. Kg1 {[%clk 0:00:40.3]} 34... Nc4 {[%clk 0:01:19]} 35.
Qc5 {[%clk 0:00:41.7]} 35... Re6 {[%clk 0:00:18.4]} 36. Qf2 {[%clk 0:00:37.6]}
36... Rf6 {[%clk 0:00:15.9]} 37. Re1 {[%clk 0:00:35.1]} 37... Qg5 {[%clk
0:00:17.1]} 38. Nd4 {[%clk 0:00:33.7]} 38... Nd6 {[%clk 0:00:16.4]} 39. Kh1
{[%clk 0:00:33.5]} 39... c5 {[%clk 0:00:16.4]} 40. Nc2 {[%clk 0:00:33.1]} 40...
d4 {[%clk 0:00:17.2]} 41. cxd4 {[%clk 0:00:32.6]} 41... Ne4 {[%clk 0:00:11.2]}
42. Qe3 {[%clk 0:00:31.3]} 42... Qf5 {[%clk 0:00:05.8]} 43. dxc5 {[%clk
0:00:26.6]} 43... Re6 {[%clk 0:00:07.1]} 44. Nd4 {[%clk 0:00:22.7]} 44... Qe5
{[%clk 0:00:02.5]} 45. Nxe6+ {[%clk 0:00:23.1]} 45... Kf6 {[%clk 0:00:03.8]} 46.
Bxe4 {[%clk 0:00:25]} 46... Bxe4 {[%clk 0:00:03.4]} 47. Qxe4 {[%clk 0:00:26.2]}
47... Qxb2 {[%clk 0:00:04.2]} 48. Nd4 {[%clk 0:00:25.9]} 48... Qf2 {[%clk
0:00:04.2]} 49. Qf3+ {[%clk 0:00:25.4]} 49... Kg7 {[%clk 0:00:03.7]} 50. Qxf2
{[%clk 0:00:25.6]} 1-0